bitfinex/quotes_SOLUSD_20250406
["timestamp","ask_amount","ask_price","bid_price","bid_amount"]
[1743972014225,67.78687762,107.91,107.85,26.0]
[1743972014397,67.78687762,107.93,107.88,19.07613357]
[1743972014726,0.063,107.94,107.88,0.42648471]
[1743972014920,67.78687762,107.92,107.88,18.79181043]
[1743972015124,67.78687762,107.9,107.86,18.79181043]
[1743972015327,67.78687762,107.87,107.78,18.79181043]
[1743972015500,67.84987762,107.94,107.85,0.14216157]
[1743972015699,67.78687762,107.9,107.85,0.14216157]
[1743972016013,67.78687762,107.9,107.79,12.3555346]
[1743972016014,26.0,107.91,107.83,18.79181043]
[1743972016318,26.0,107.91,107.85,86.57868805]
[1743972016521,67.84987762,107.94,107.83,0.14216157]
[1743972016832,67.78687762,107.89,107.83,0.14216157]
[1743972017032,26.0,107.9,107.83,18.79181043]
[1743972017221,67.78687762,107.87,107.83,18.79181043]
[1743972017402,67.78687762,107.84,107.78,1.69657768]
[1743972017602,315.52,107.9,107.81,67.78687762]
[1743972017902,67.78687762,107.87,107.82,18.933972]
[1743972018118,135.57375524,107.83,107.71,9.2835]
[1743972018336,67.78687762,107.77,107.69,88.03414457]
[1743972018536,67.78687762,107.77,107.72,67.78687762]
[1743972018846,67.78687762,107.81,107.75,67.78687762]
[1743972019049,67.78687762,107.88,107.77,86.86301119]
[1743972019350,67.78687762,107.78,107.66,9.2885]
[1743972019522,67.92903919,107.82,107.72,67.78687762]
[1743972019523,67.78687762,107.82,107.72,67.78687762]
[1743972019843,26.0,107.85,107.76,0.28432314]
[1743972020014,67.78687762,107.83,107.78,86.86301119]
[1743972020215,67.78687762,107.88,107.8,19.07613357]
[1743972020650,67.78687762,107.82,107.8,0.14216157]
[1743972020816,26.0,107.85,107.79,0.14216157]
[1743972021019,67.78687762,107.83,107.79,0.14216157]
[1743972021313,67.78687762,107.82,107.79,0.14216157]
[1743972021518,289.52,107.9,107.82,0.14216157]
[1743972021734,67.78687762,107.85,107.82,0.28432314]
[1743972021937,67.78687762,107.83,107.78,18.64964886]
[1743972022150,18.933972,107.87,107.79,0.14216157]
[1743972022352,67.78687762,107.8,107.75,18.64964886]
[1743972022552,26.0,107.82,107.76,0.14216157]
[1743972022718,67.78687762,107.8,107.76,0.14216157]
[1743972022914,93.78687762,107.82,107.7,67.92903919]
[1743972023143,93.78687762,107.82,107.74,0.14216157]
[1743972023336,67.78687762,107.8,107.75,19.07613357]
[1743972023530,67.78687762,107.79,107.75,18.79181043]
[1743972023848,93.78687762,107.82,107.72,0.14216157]
[1743972024147,93.78687762,107.82,107.74,0.14216157]
[1743972024312,67.78687762,107.78,107.74,18.79181043]
[1743972024517,67.78687762,107.77,107.72,67.78687762]
[1743972024712,67.78687762,107.75,107.73,0.14216157]
[1743972024936,67.78687762,107.74,107.64,67.78687762]
[1743972025140,67.78687762,107.74,107.62,295.581]
[1743972025336,67.78687762,107.72,107.67,67.78687762]
[1743972025531,67.78687762,107.72,107.64,67.78687762]
[1743972025840,67.78687762,107.71,107.62,6.001]
[1743972026018,67.78687762,107.76,107.62,6.001]
[1743972026223,67.78687762,107.7,107.62,6.001]
[1743972026431,26.0,107.73,107.65,93.78687762]
[1743972026747,67.78687762,107.71,107.66,67.78687762]
[1743972026967,67.78687762,107.71,107.67,18.79181043]
[1743972027153,67.78687762,107.7,107.65,18.79181043]
[1743972027323,26.0,107.72,107.65,18.79181043]
[1743972027522,67.78687762,107.7,107.65,86.57868805]
[1743972028045,67.78687762,107.67,107.63,0.14216157]
[1743972028231,67.78687762,107.66,107.6,67.78687762]
[1743972028434,315.64,107.72,107.64,67.78687762]
[1743972028641,67.78687762,107.65,107.58,0.063]
[1743972028956,26.0,107.67,107.6,0.14216157]
[1743972029250,67.78687762,107.64,107.6,18.79181043]
[1743972029450,67.78687762,107.61,107.58,0.063]
[1743972029663,67.78687762,107.59,107.58,0.063]
[1743972029957,26.0,107.56,107.52,0.063]
[1743972030249,154.64988881,107.59,107.52,0.063]
[1743972030250,67.78687762,107.53,107.52,0.063]
[1743972030455,154.64988881,107.53,107.52,0.063]
[1743972031153,154.64988881,107.53,107.43,30.0]
[1743972031154,67.78687762,107.47,107.43,30.0]
[1743972031551,67.78687762,107.48,107.43,97.78687762]
[1743972031753,67.78687762,107.52,107.46,67.78687762]
[1743972032049,26.0,107.59,107.53,0.14216157]
[1743972032356,26.0,107.59,107.41,439.0155346]
[1743972032357,67.78687762,107.54,107.41,439.0155346]
[1743972032558,18.79181043,107.57,107.49,86.72084962]
[1743972032767,67.78687762,107.55,107.51,0.28432314]
[1743972032970,289.72,107.62,107.54,18.64964886]
[1743972033279,289.72,107.62,107.46,67.78687762]
[1743972033280,67.78687762,107.57,107.47,0.42648471]
[1743972033445,67.78687762,107.56,107.51,19.07613357]
[1743972033846,18.79181043,107.6,107.51,19.07613357]
[1743972033847,67.78687762,107.55,107.51,18.933972]
[1743972034150,86.57868805,107.58,107.5,26.0]
[1743972034347,67.78687762,107.52,107.4,151.18687762]
[1743972034556,18.933972,107.57,107.48,0.14216157]
[1743972034750,67.78687762,107.53,107.48,18.933972]
[1743972035067,67.78687762,107.52,107.48,18.79181043]
[1743972035276,67.78687762,107.52,107.46,67.78687762]
[1743972035445,67.78687762,107.52,107.46,18.79181043]
[1743972035644,67.78687762,107.52,107.47,67.78687762]
[1743972035967,67.78687762,107.58,107.5,18.79181043]
[1743972036366,67.78687762,107.55,107.5,18.79181043]
[1743972036669,67.78687762,107.55,107.51,0.28432314]
[1743972036875,67.78687762,107.54,107.49,26.0]
[1743972037082,67.78687762,107.51,107.46,86.57868805]
[1743972037268,67.78687762,107.5,107.46,0.14216157]
[1743972037580,67.78687762,107.49,107.46,0.14216157]
[1743972037752,67.78687762,107.49,107.44,67.78687762]
[1743972037955,67.78687762,107.49,107.45,0.14216157]
[1743972038146,26.0,107.53,107.46,67.92903919]
[1743972038355,20.0,107.6,107.46,67.92903919]
[1743972038356,81.7,107.62,107.48,86.57868805]
[1743972038663,67.78687762,107.52,107.48,18.79181043]
[1743972038850,67.78687762,107.52,107.48,0.14216157]
[1743972039049,67.78687762,107.52,107.46,67.78687762]
[1743972039281,67.78687762,107.49,107.38,24.841]
[1743972039449,67.78687762,107.46,107.39,0.14216157]
[1743972039777,67.78687762,107.5,107.45,86.43652648]
[1743972040074,67.78687762,107.53,107.48,67.78687762]
[1743972040277,18.79181043,107.6,107.5,45.07613357]
[1743972040478,67.78687762,107.57,107.52,19.07613357]
[1743972040850,26.0,107.58,107.51,86.86301119]
[1743972041174,67.78687762,107.57,107.52,67.78687762]
[1743972041349,67.78687762,107.55,107.5,26.0]
[1743972041673,67.78687762,107.56,107.51,86.72084962]
[1743972041992,67.78687762,107.57,107.52,0.14216157]
[1743972042185,67.78687762,107.58,107.53,86.72084962]
[1743972042370,67.78687762,107.62,107.57,67.78687762]
[1743972042549,290.24,107.64,107.57,67.78687762]
[1743972042757,67.78687762,107.62,107.57,67.78687762]
[1743972042956,67.78687762,107.59,107.54,67.78687762]
[1743972043265,67.78687762,107.56,107.51,68.21336233]
[1743972043463,24.99537417,107.61,107.52,18.64964886]
[1743972043669,67.78687762,107.57,107.52,44.933972]
[1743972043887,67.78687762,107.55,107.5,67.78687762]
[1743972044558,67.78687762,107.56,107.51,67.78687762]
[1743972044749,67.78687762,107.55,107.5,67.78687762]
[1743972045074,67.78687762,107.52,107.47,0.063]
[1743972045272,67.78687762,107.5,107.47,0.063]
[1743972045587,18.64964886,107.57,107.47,0.063]
[1743972045588,18.79181043,107.59,107.5,18.64964886]
[1743972045808,67.78687762,107.55,107.47,0.20516157]
[1743972046088,0.14216157,107.6,107.52,0.28432314]
[1743972046261,439.25687762,107.64,107.54,0.14216157]
[1743972046462,67.78687762,107.6,107.55,67.78687762]
[1743972046768,358.05687762,107.64,107.56,19.07613357]
[1743972046984,67.81687762,107.62,107.57,67.78687762]
[1743972047287,0.03,107.62,107.59,67.78687762]
[1743972047462,0.03,107.62,107.6,68.21336233]
[1743972047672,0.03,107.62,107.61,86.86301119]
[1743972047881,0.03,107.64,107.63,26.14216157]
[1743972048058,81.2,107.78,107.64,0.14216157]
[1743972048059,67.78687762,107.71,107.64,0.14216157]
[1743972048261,67.78687762,107.71,107.65,0.28432314]
[1743972048454,67.78687762,107.76,107.64,67.92903919]
[1743972048455,67.78687762,107.7,107.64,67.92903919]
[1743972048657,67.78687762,107.71,107.66,18.79181043]
[1743972048962,67.78687762,107.71,107.66,86.57868805]
[1743972049164,67.78687762,107.7,107.66,18.79181043]
[1743972049374,67.78687762,107.7,107.65,0.28432314]
[1743972049584,67.78687762,107.7,107.65,68.07120076]
[1743972049784,67.78687762,107.68,107.63,67.78687762]
[1743972049989,67.78687762,107.69,107.65,18.64964886]
[1743972050306,3.67,107.73,107.67,18.64964886]
[1743972050599,71.45687762,107.73,107.68,86.86301119]
[1743972050963,67.78687762,107.72,107.68,19.07613357]
[1743972051167,67.78687762,107.72,107.67,19.07613357]
[1743972051362,67.78687762,107.71,107.61,9.2928]
[1743972051599,0.42648471,107.72,107.63,18.79181043]
[1743972051763,67.78687762,107.68,107.63,18.79181043]
[1743972051968,67.78687762,107.67,107.63,18.79181043]
[1743972052165,0.42648471,107.72,107.63,0.14216157]
[1743972052369,67.78687762,107.67,107.63,26.14216157]
[1743972052666,67.78687762,107.69,107.64,86.57868805]
[1743972052988,67.78687762,107.69,107.64,18.79181043]
[1743972053309,67.78687762,107.68,107.63,93.92903919]
[1743972053668,67.78687762,107.67,107.62,112.86301119]
[1743972053897,67.78687762,107.67,107.58,68.13057762]
[1743972054109,86.86301119,107.7,107.59,67.92903919]
[1743972054110,67.78687762,107.64,107.59,67.92903919]
[1743972054271,67.78687762,107.61,107.54,6.62]
[1743972054477,67.78687762,107.6,107.55,67.78687762]
[1743972054786,67.78687762,107.64,107.59,67.78687762]
[1743972055102,67.78687762,107.62,107.57,67.78687762]
[1743972055416,223.36063286,107.58,107.47,0.063]
[1743972055566,67.78687762,107.48,107.47,0.063]
[1743972056378,67.78687762,107.5,107.47,0.063]
[1743972056779,67.78687762,107.49,107.47,0.063]
[1743972057018,67.78687762,107.49,107.47,18.85481043]
[1743972057181,67.78687762,107.5,107.48,0.28432314]
[1743972057390,67.78687762,107.52,107.48,0.28432314]
[1743972057697,67.78687762,107.49,107.47,0.063]
[1743972057875,67.78687762,107.51,107.47,0.063]
[1743972058075,67.78687762,107.51,107.48,0.28432314]
[1743972058507,67.78687762,107.51,107.49,18.79181043]
[1743972059367,18.933972,107.59,107.5,19.07613357]
[1743972059570,67.78687762,107.52,107.5,0.42648471]
[1743972059782,19.07613357,107.59,107.5,0.42648471]
[1743972059985,67.78687762,107.53,107.5,0.28432314]
[1743972060197,67.78687762,107.52,107.5,0.28432314]
[1743972061112,99.99181043,107.62,107.51,0.14216157]
[1743972061409,1.5807,107.65,107.56,26.0]
[1743972061410,67.78687762,107.64,107.56,26.0]
[1743972061716,67.78687762,107.64,107.57,18.79181043]
[1743972062020,67.78687762,107.62,107.58,0.28432314]
[1743972062207,67.78687762,107.63,107.58,0.28432314]
[1743972062412,290.2,107.69,107.61,19.07613357]
[1743972062594,67.78687762,107.65,107.61,19.07613357]
[1743972062807,67.78687762,107.64,107.61,0.28432314]
[1743972062989,67.78687762,107.7,107.63,19.07613357]
[1743972063192,67.78687762,107.67,107.63,0.28432314]
[1743972063394,67.78687762,107.7,107.63,0.28432314]
[1743972063395,67.78687762,107.66,107.63,0.28432314]
[1743972063594,67.78687762,107.7,107.58,67.78687762]
[1743972063904,26.0,107.67,107.6,0.14216157]
[1743972064103,67.78687762,107.62,107.61,0.28432314]
[1743972064427,67.78687762,107.62,107.59,26.0]
[1743972064633,67.78687762,107.61,107.58,0.14216157]
[1743972064809,67.78687762,107.59,107.56,18.79181043]
[1743972064993,67.78687762,107.58,107.56,0.14216157]
[1743972065334,67.78687762,107.64,107.55,0.14216157]
[1743972065627,67.78687762,107.56,107.54,0.14216157]
[1743972065798,67.78687762,107.58,107.52,0.14216157]
[1743972065993,67.78687762,107.55,107.52,0.14216157]
[1743972066200,67.78687762,107.53,107.47,0.063]
[1743972066416,67.78687762,107.51,107.47,0.063]
[1743972066594,67.78687762,107.48,107.47,0.063]
[1743972067995,7.7501,107.7,107.49,6.065]
[1743972068194,0.5,107.68,107.54,0.28432314]
[1743972068412,18.64964886,107.63,107.58,67.78687762]
[1743972068625,26.0,107.62,107.6,67.78687762]
[1743972068828,18.64964886,107.68,107.6,67.78687762]
[1743972069033,0.14216157,107.65,107.61,67.78687762]
[1743972069242,26.0,107.64,107.62,67.78687762]
[1743972069545,18.64964886,107.65,107.6,67.78687762]
[1743972069748,81.2,107.69,107.61,67.78687762]
[1743972069917,86.57868805,107.68,107.62,67.78687762]
[1743972070114,26.0,107.64,107.58,67.78687762]
[1743972070342,26.0,107.63,107.59,67.78687762]
[1743972070539,0.14216157,107.64,107.59,67.78687762]
[1743972070721,26.0,107.63,107.6,67.78687762]
[1743972070925,0.28432314,107.64,107.6,67.78687762]
[1743972071324,18.933972,107.64,107.59,67.78687762]
[1743972071527,26.0,107.64,107.62,67.78687762]
[1743972071737,26.0,107.64,107.61,67.78687762]
[1743972071936,67.78687762,107.63,107.57,67.78687762]
[1743972072243,67.78687762,107.62,107.57,67.78687762]
[1743972072449,67.92903919,107.61,107.52,67.78687762]
[1743972072649,67.78687762,107.58,107.5,0.14216157]
[1743972072811,67.78687762,107.58,107.52,67.78687762]
[1743972073015,67.78687762,107.55,107.49,67.78687762]
[1743972073334,67.78687762,107.55,107.47,0.20516157]
[1743972073335,67.78687762,107.52,107.47,0.063]
[1743972073740,18.64964886,107.55,107.47,0.063]
[1743972073912,67.78687762,107.54,107.48,67.78687762]
[1743972074116,148.98687762,107.58,107.49,67.78687762]
[1743972074446,77.49649313,107.6,107.54,67.51649313]
[1743972074621,77.49649313,107.6,107.5,0.14216157]
[1743972074622,77.49649313,107.6,107.55,67.51649313]
[1743972074815,9.98,107.6,107.57,67.51649313]
[1743972075024,9.98,107.6,107.58,67.51649313]
[1743972075250,9.98,107.6,107.57,67.51649313]
[1743972075429,9.98,107.6,107.58,67.51649313]
[1743972075749,86.30830356,107.59,107.47,290.323]
[1743972075959,26.0,107.56,107.51,67.51649313]
[1743972076261,67.51649313,107.55,107.5,67.51649313]
[1743972076462,18.79181043,107.59,107.52,67.51649313]
[1743972076633,91.18,107.6,107.54,67.51649313]
[1743972076634,77.49649313,107.6,107.54,67.51649313]
[1743972076834,9.98,107.6,107.58,67.51649313]
[1743972077040,9.98,107.6,107.59,67.51649313]
[1743972078061,9.98,107.6,107.59,86.5926267]
[1743972078430,8.331857,107.6,107.59,67.51649313]
[1743972078769,8.331857,107.6,107.55,6.0555]
[1743972078770,8.331857,107.6,107.55,26.0]
[1743972079054,8.331857,107.6,107.59,67.51649313]
[1743972079264,8.331857,107.6,107.53,18.79181043]
[1743972079581,8.331857,107.6,107.58,67.51649313]
[1743972079928,8.331857,107.6,107.56,67.51649313]
[1743972080260,8.331857,107.6,107.59,86.16614199]
[1743972080459,8.331857,107.6,107.59,95.8871267]
[1743972080634,6.665257,107.6,107.59,95.8871267]
[1743972080832,67.51649313,107.71,107.64,18.933972]
[1743972081043,67.51649313,107.71,107.65,67.51649313]
[1743972081444,1.5385,107.72,107.67,67.51649313]
[1743972081663,0.03,107.73,107.69,67.51649313]
[1743972081865,67.54649313,107.73,107.66,0.28432314]
[1743972082170,67.51649313,107.71,107.66,67.51649313]
[1743972082331,67.51649313,107.7,107.64,26.28432314]
[1743972082533,0.03,107.73,107.65,18.79181043]
[1743972082755,67.51649313,107.7,107.65,67.51649313]
[1743972082955,67.51649313,107.72,107.66,67.51649313]
[1743972083163,67.51649313,107.71,107.64,26.0]
[1743972083377,67.51649313,107.67,107.62,67.51649313]
[1743972083702,67.51649313,107.68,107.61,26.0]
[1743972083992,67.51649313,107.68,107.62,67.51649313]
[1743972084197,0.03,107.65,107.58,67.51649313]
[1743972084367,0.03,107.65,107.6,67.51649313]
[1743972084682,0.03,107.65,107.62,67.51649313]
[1743972084848,0.03,107.65,107.63,67.51649313]
[1743972085053,0.03,107.65,107.64,67.51649313]
[1743972085377,0.03,107.65,107.64,154.10911983]
[1743972086078,0.03,107.65,107.64,86.5926267]
[1743972087156,0.03,107.65,107.64,154.10911983]
[1743972087584,0.03,107.65,107.64,163.39931983]
[1743972087963,0.03,107.65,107.64,86.5926267]
[1743972088376,0.03,107.65,107.63,9.2909]
[1743972088377,0.03,107.65,107.59,28.08631043]
[1743972088579,0.03,107.65,107.6,67.51649313]
[1743972089168,0.03,107.65,107.59,19.07613357]
[1743972089367,0.03,107.65,107.61,67.51649313]
[1743972089576,0.03,107.65,107.59,19.07613357]
[1743972089879,0.03,107.65,107.62,67.51649313]
[1743972090062,0.03,107.65,107.63,67.51649313]
[1743972090259,0.03,107.65,107.62,18.79181043]
[1743972090584,0.03,107.65,107.64,67.51649313]
[1743972090793,0.03,107.65,107.62,67.51649313]
[1743972091085,67.51649313,107.64,107.54,9.2988]
[1743972091275,67.51649313,107.61,107.53,9.44156157]
[1743972091475,67.51649313,107.6,107.52,67.51649313]
[1743972091683,67.51649313,107.6,107.54,67.51649313]
[1743972091865,0.14216157,107.61,107.54,67.51649313]
[1743972092071,67.51649313,107.59,107.54,67.51649313]
[1743972092374,67.51649313,107.58,107.51,0.14216157]
[1743972092573,67.51649313,107.59,107.54,67.51649313]
[1743972092979,67.51649313,107.58,107.51,9.44336157]
[1743972093282,67.51649313,107.6,107.55,67.51649313]
[1743972093486,93.51649313,107.62,107.57,67.51649313]
[1743972093685,67.51649313,107.62,107.57,67.51649313]
[1743972093888,67.51649313,107.6,107.54,18.933972]
[1743972094202,26.0,107.6,107.53,67.51649313]
[1743972094381,67.51649313,107.59,107.53,67.51649313]
[1743972094599,67.51649313,107.59,107.54,67.51649313]
[1743972095266,26.0,107.6,107.55,67.51649313]
[1743972095471,93.51649313,107.6,107.55,67.51649313]
[1743972095803,93.51649313,107.62,107.57,67.51649313]
[1743972095982,1.618,107.63,107.57,67.51649313]
[1743972096162,67.51649313,107.62,107.57,67.51649313]
[1743972096564,1.618,107.63,107.59,67.51649313]
[1743972097202,67.51649313,107.6,107.53,0.28432314]
[1743972097365,67.51649313,107.58,107.53,67.51649313]
[1743972097893,26.0,107.6,107.54,67.51649313]
[1743972098266,67.51649313,107.59,107.54,67.51649313]
[1743972099776,20.26764886,107.63,107.55,67.51649313]
[1743972099979,67.51649313,107.62,107.57,67.51649313]
[1743972100503,0.03,107.65,107.61,67.51649313]
[1743972100686,0.03,107.65,107.64,67.51649313]
[1743972100867,0.03,107.65,107.63,67.51649313]
[1743972101308,0.03,107.65,107.64,67.51649313]
[1743972102367,0.03,107.65,107.63,86.16614199]
[1743972102567,0.03,107.65,107.64,67.51649313]
[1743972103008,0.03,107.65,107.6,18.933972]
[1743972103171,67.54649313,107.65,107.59,67.51649313]
[1743972103368,0.03,107.65,107.59,18.79181043]
[1743972103681,0.03,107.65,107.61,67.51649313]
[1743972103867,0.03,107.65,107.62,67.51649313]
[1743972104081,0.03,107.65,107.64,67.51649313]
[1743972104605,0.03,107.65,107.63,18.79181043]
[1743972104904,0.03,107.65,107.64,95.8828267]
[1743972105196,0.03,107.65,107.64,163.39931983]
[1743972105381,0.03,107.65,107.64,67.51649313]
[1743972105583,0.03,107.65,107.63,67.51649313]
[1743972105780,0.03,107.65,107.59,299.3743]
[1743972106011,0.03,107.65,107.61,67.51649313]
[1743972106540,0.03,107.65,107.62,67.51649313]
[1743972106823,0.03,107.65,107.6,18.79181043]
[1743972106992,0.03,107.65,107.62,67.51649313]
[1743972107194,0.03,107.65,107.63,67.51649313]
[1743972107726,0.03,107.65,107.6,18.79181043]
[1743972107927,0.03,107.65,107.62,86.5926267]
[1743972108127,0.03,107.65,107.63,67.51649313]
[1743972108426,0.03,107.65,107.62,67.51649313]
[1743972108735,0.03,107.65,107.63,67.51649313]
[1743972108903,0.03,107.65,107.64,67.51649313]
[1743972109530,0.03,107.65,107.64,86.5926267]
[1743972110405,0.03,107.65,107.64,154.10911983]
[1743972110902,0.03,107.65,107.64,189.39931983]
[1743972111323,0.03,107.7,107.68,26.14216157]
[1743972111528,0.03,107.73,107.72,45.07613357]
[1743972111711,0.03,107.73,107.72,112.5926267]
[1743972111921,0.03,107.76,107.73,19.07613357]
[1743972112431,0.03,107.76,107.75,86.5926267]
[1743972112929,0.03,107.76,107.75,163.38981983]
[1743972113521,0.03,107.79,107.78,26.14216157]
[1743972113745,0.03,107.79,107.78,112.5926267]
[1743972114631,13.7498176,107.82,107.81,180.10911983]
[1743972114834,13.7498176,107.82,107.81,121.8681267]
[1743972115040,13.7498176,107.82,107.81,189.38461983]
[1743972115745,1.533,107.88,107.82,19.07613357]
[1743972116055,1.533,107.88,107.86,67.51649313]
[1743972116352,1.533,107.88,107.87,67.51649313]
[1743972116653,67.51649313,107.92,107.87,67.51649313]
[1743972117023,13.7498176,107.93,107.86,67.51649313]
[1743972117333,81.26631073,107.93,107.88,67.51649313]
[1743972117531,13.7498176,107.93,107.89,67.51649313]
[1743972117830,67.51649313,107.92,107.87,67.51649313]
[1743972118037,67.51649313,107.92,107.83,18.64964886]
[1743972118038,67.51649313,107.89,107.83,18.64964886]
[1743972118353,26.0,107.89,107.82,67.51649313]
[1743972118656,18.933972,107.92,107.84,67.51649313]
[1743972118833,0.14216157,107.91,107.85,67.51649313]
[1743972119021,67.51649313,107.88,107.82,18.79181043]
[1743972119223,67.51649313,107.88,107.83,67.51649313]
[1743972119550,67.51649313,107.88,107.82,18.79181043]
[1743972119722,67.51649313,107.88,107.83,67.51649313]
[1743972119926,67.51649313,107.87,107.81,67.51649313]
[1743972120119,0.14216157,107.89,107.82,67.51649313]
[1743972120336,0.14216157,107.89,107.72,9.2833]
[1743972120337,67.51649313,107.83,107.72,9.2833]
[1743972120643,67.51649313,107.82,107.77,67.51649313]
[1743972120847,69.15499313,107.84,107.78,67.51649313]
[1743972121052,69.15499313,107.84,107.79,67.51649313]
[1743972121053,1.6385,107.84,107.79,67.51649313]
[1743972121418,1.6385,107.84,107.82,67.51649313]
[1743972121620,93.51649313,107.88,107.83,67.51649313]
[1743972122023,67.51649313,107.85,107.79,26.0]
[1743972122220,26.0,107.88,107.82,67.51649313]
[1743972122450,1.6385,107.9,107.85,67.51649313]
[1743972122668,1.6385,107.9,107.88,67.51649313]
[1743972122822,73.96549313,107.94,107.89,67.51649313]
[1743972123251,67.51649313,107.93,107.88,67.51649313]
[1743972123471,0.03,107.89,107.88,67.51649313]
[1743972124160,0.03,107.89,107.88,86.5926267]
[1743972124479,0.03,107.89,107.88,163.37861983]
[1743972125264,0.03,107.89,107.82,67.51649313]
[1743972125448,0.03,107.89,107.86,67.51649313]
[1743972125627,0.03,107.89,107.87,67.51649313]
[1743972125833,0.03,107.89,107.88,67.51649313]
[1743972126332,0.03,107.89,107.87,26.0]
[1743972126543,0.03,107.89,107.88,86.5926267]
[1743972127066,0.03,107.89,107.88,67.51649313]
[1743972127428,0.03,107.89,107.88,95.8621267]
[1743972127633,0.03,107.89,107.88,163.37861983]
[1743972128366,0.03,107.89,107.88,154.10911983]
[1743972128575,0.03,107.89,107.88,67.51649313]
[1743972128741,0.03,107.89,107.88,18.933972]
[1743972128938,0.03,107.89,107.88,86.45046513]
[1743972129151,0.03,107.89,107.88,86.5926267]
[1743972129550,0.03,107.89,107.82,67.51649313]
[1743972129770,0.03,107.89,107.86,67.51649313]
[1743972130377,0.03,107.89,107.87,67.51649313]
[1743972130744,0.03,107.89,107.86,67.51649313]
[1743972130973,0.03,107.89,107.83,18.79181043]
[1743972131145,0.03,107.89,107.85,67.51649313]
[1743972131549,67.54649313,107.89,107.82,18.79181043]
[1743972131754,0.03,107.89,107.85,67.51649313]
[1743972131965,0.03,107.89,107.86,67.51649313]
[1743972132270,0.03,107.89,107.82,86.30830356]
[1743972132271,67.51649313,107.87,107.81,289.62]
[1743972132448,67.51649313,107.86,107.81,67.51649313]
[1743972132653,67.51649313,107.85,107.79,67.51649313]
[1743972132855,67.51649313,107.83,107.73,289.42]
[1743972133154,67.51649313,107.81,107.76,67.51649313]
[1743972133575,67.51649313,107.8,107.76,67.51649313]
[1743972133755,67.51649313,107.83,107.78,67.51649313]
[1743972133952,67.51649313,107.84,107.79,67.51649313]
[1743972134153,67.51649313,107.85,107.77,19.07613357]
[1743972134447,1.5184,107.86,107.81,67.51649313]
[1743972134672,69.03489313,107.86,107.81,67.51649313]
[1743972134861,69.03489313,107.86,107.77,19.07613357]
[1743972135179,1.5184,107.86,107.81,67.51649313]
[1743972135371,69.03489313,107.86,107.81,67.51649313]
[1743972135563,6.4305,107.89,107.85,67.51649313]
[1743972135758,0.03,107.89,107.87,67.51649313]
[1743972136064,0.03,107.89,107.88,86.5926267]
[1743972136265,0.03,107.89,107.88,67.51649313]
[1743972136458,0.03,107.89,107.87,67.51649313]
[1743972136645,0.03,107.89,107.88,86.5926267]
[1743972137066,0.03,107.89,107.88,154.10911983]
[1743972137267,0.03,107.89,107.88,86.5926267]
[1743972137442,0.03,107.89,107.88,163.37861983]
[1743972138044,0.03,107.89,107.85,0.42648471]
[1743972138263,0.03,107.89,107.88,67.51649313]
[1743972138478,0.03,107.89,107.86,67.51649313]
[1743972138781,0.03,107.89,107.87,67.51649313]
[1743972138951,0.03,107.89,107.88,67.51649313]
[1743972139151,0.03,107.89,107.87,67.51649313]
[1743972139349,67.54649313,107.89,107.83,289.46]
[1743972139567,67.51649313,107.88,107.83,289.46]
[1743972139766,0.03,107.89,107.84,67.51649313]
[1743972139978,67.54649313,107.89,107.84,67.51649313]
[1743972140171,67.51649313,107.88,107.83,356.97649313]
[1743972140372,0.03,107.89,107.84,67.51649313]
[1743972140574,0.03,107.89,107.86,67.51649313]
[1743972140888,0.03,107.89,107.84,0.42648471]
[1743972141055,0.03,107.89,107.86,67.51649313]
[1743972141249,0.03,107.89,107.87,67.51649313]
[1743972141647,0.03,107.89,107.88,67.51649313]
[1743972141876,0.03,107.89,107.87,67.51649313]
[1743972142067,0.03,107.89,107.83,289.74432314]
[1743972142265,67.51649313,107.88,107.83,289.46]
[1743972142572,67.51649313,107.84,107.76,289.38]
[1743972142778,67.51649313,107.86,107.8,67.51649313]
[1743972142956,69.05859313,107.87,107.79,26.0]
[1743972143152,0.03,107.89,107.8,0.14216157]
[1743972143353,0.03,107.89,107.87,67.51649313]
[1743972143803,0.03,107.89,107.88,67.51649313]
[1743972144001,0.03,107.89,107.8,35.30319305]
[1743972144183,0.03,107.89,107.84,67.51649313]
[1743972144392,0.03,107.89,107.85,67.51649313]
[1743972144597,0.03,107.89,107.86,67.51649313]
[1743972144903,0.03,107.89,107.88,67.6586547]
[1743972145104,0.03,107.89,107.88,67.51649313]